bitfinex-derivatives/quotes_ETHF0:USTF0_20241004
["timestamp","ask_amount","ask_price","bid_price","bid_amount"]
[1728082069584,0.8121,2419.9,2419.8,1.90430907]
[1728082070187,0.8121,2419.9,2419.8,3.0517466]
[1728082071383,0.8121,2419.9,2419.8,2.6385166]
[1728082071779,0.8121,2419.9,2419.8,3.0517466]
[1728082072184,0.8121,2419.9,2419.8,0.41323]
[1728082072383,0.8121,2419.9,2419.8,1.90556111]
[1728082072595,0.8121,2419.9,2419.8,3.05350812]
[1728082072785,4.9449,2419.9,2419.8,3.05350812]
[1728082072985,11.35811,2419.9,2419.8,1.49233111]
[1728082073186,11.35811,2419.9,2419.8,2.64031152]
[1728082073693,11.35811,2419.9,2419.8,1.49233111]
[1728082074587,5.35811,2419.9,2419.8,1.49233111]
[1728082074782,11.35811,2419.9,2419.8,1.49233111]
[1728082074983,5.35811,2419.9,2419.8,1.49233111]
[1728082075586,5.35811,2419.9,2419.8,1.49220974]
[1728082076291,5.35811,2419.9,2419.8,2.64002628]
[1728082076684,5.35811,2419.9,2419.8,1.49220974]
[1728082079098,5.35811,2419.9,2419.8,1.49210051]
[1728082079589,5.35811,2419.9,2419.8,1.49207648]
[1728082079791,4.0199,2419.9,2419.8,3.0530405]
[1728082081488,4.0199,2419.9,2419.8,0.41323]
[1728082081891,4.0199,2419.9,2419.8,2.47910201]
[1728082082089,4.0199,2419.9,2419.8,3.05295534]
[1728082082390,4.0199,2419.9,2419.8,2.63972534]
[1728082083095,4.0199,2419.9,2419.8,1.49201867]
[1728082083691,4.0199,2419.9,2419.8,2.63976468]
[1728082084198,4.0199,2419.9,2419.8,2.63976282]
[1728082084899,4.43311,2419.9,2419.8,2.63976282]
[1728082085094,4.43311,2419.9,2419.8,1.49207025]
[1728082085298,4.43311,2419.9,2419.8,2.63981351]
[1728082085493,3.2078,2419.9,2419.8,3.05304351]
[1728082085695,3.2078,2419.9,2419.8,3.45674351]
[1728082087491,3.2078,2419.9,2419.8,3.04351351]
[1728082088000,4.01861,2419.9,2419.8,2.63981351]
[1728082088393,4.01861,2419.9,2419.5,1.73009864]
[1728082088394,0.41323,2419.8,2419.5,1.49764946]
[1728082088595,0.8488,2419.7,2419.5,1.48476946]
[1728082088800,0.8488,2419.7,2419.6,2.06597116]
[1728082089007,0.41327,2419.6,2419.5,0.64574209]
[1728082089195,5.7168,2419.6,2419.5,0.91830518]
[1728082089398,0.41333,2419.2,2419.1,0.4004]
[1728082089996,0.41333,2419.2,2419.1,0.96231176]
[1728082090197,0.80733,2419.3,2419.1,0.96231176]
[1728082090496,0.4235,2419.2,2419.1,0.4004]
[1728082090705,3.6313,2419.2,2419.1,0.95286263]
[1728082091297,3.6313,2419.2,2419.1,0.4004]
[1728082091502,3.6313,2419.2,2419.1,0.95261319]
[1728082091899,3.6313,2419.2,2419.1,0.4004]
[1728082092100,3.6313,2419.2,2419.1,0.95260937]
[1728082092298,3.6313,2419.2,2419.1,0.4004]
[1728082095900,0.4235,2419.2,2419.1,0.4004]
[1728082101009,0.4235,2419.2,2418.9,1.19]
[1728082101202,0.4235,2419.2,2418.9,1.6161]
[1728082101602,3.6313,2419.2,2418.9,1.6161]
[1728082102713,3.6313,2419.2,2418.9,2.02948]
[1728082104202,3.6313,2419.2,2418.9,1.6161]
[1728082104407,3.6313,2419.2,2419.0,0.41337]
[1728082104609,3.6313,2419.2,2418.9,1.6161]
[1728082104811,3.6313,2419.2,2418.9,2.02947]
[1728082106111,0.4235,2419.2,2418.9,2.02947]
[1728082106717,4.0026,2419.3,2419.0,1.60337]
[1728082106911,4.0026,2419.3,2419.0,1.5949]
[1728082107113,4.0026,2419.3,2419.0,2.00827]
[1728082107818,3.6018,2419.3,2419.2,1.19]
[1728082108015,0.4148,2419.6,2419.2,1.60333]
[1728082108313,0.4148,2419.6,2419.0,0.4049]
[1728082108314,0.818,2419.6,2419.4,1.19]
[1728082108518,0.818,2419.6,2419.4,1.6033]
[1728082108809,0.818,2419.6,2419.4,2.0082]
[1728082109714,0.818,2419.6,2419.4,1.5949]
[1728082110912,1.23127,2419.6,2419.4,1.5949]
[1728082111115,1.23127,2419.6,2419.3,2.0005]
[1728082111311,0.41328,2419.5,2419.3,2.0005]
[1728082111504,0.41328,2419.5,2419.0,1.5912]
[1728082111505,1.19,2419.5,2419.0,1.5912]
[1728082111717,0.41334,2419.2,2419.0,1.6003]
[1728082111918,4.02237,2419.1,2418.8,1.5904]
[1728082112212,4.83377,2419.1,2418.8,2.0007]
[1728082113323,4.83377,2419.1,2418.8,2.4141]
[1728082113617,4.4204,2419.1,2418.8,2.4141]
[1728082114018,4.83375,2419.1,2418.8,2.4141]
[1728082114608,1.62595,2419.1,2418.8,2.4141]
[1728082114812,4.83375,2419.1,2418.8,2.4141]
[1728082115212,4.4204,2419.1,2418.8,2.4141]
[1728082115516,4.4204,2419.1,2418.9,0.41338]
[1728082115820,3.9999,2419.1,2418.9,0.41338]
[1728082116623,3.2078,2419.1,2418.9,0.41338]
[1728082116818,3.2078,2419.1,2419.0,0.4095]
[1728082118117,3.2078,2419.2,2419.0,0.4095]
[1728082118318,3.2078,2419.2,2419.0,1.5995]
[1728082119718,0.41333,2419.3,2419.0,1.5995]
[1728082119921,3.2078,2419.2,2419.0,1.5995]
[1728082121019,3.62114,2419.2,2419.0,1.5995]
[1728082124621,0.3951,2419.1,2418.9,1.19]
[1728082124921,0.8057,2419.1,2418.9,1.19]
[1728082125931,1.21907,2419.1,2418.9,1.19]
[1728082126130,0.4169,2419.0,2418.9,1.19]
[1728082128427,0.4169,2419.0,2418.5,1.6021]
[1728082128621,3.6212,2418.9,2418.6,0.55160615]
[1728082128828,3.6212,2418.9,2418.7,0.55160615]
[1728082129123,3.6212,2418.9,2418.6,0.41344]
[1728082129331,0.4134,2418.8,2418.7,0.55171077]
[1728082129522,0.3877,2418.8,2418.3,1.5838]
[1728082129722,0.4175,2418.7,2418.4,2.26163844]
[1728082129926,0.4185,2418.6,2418.5,0.55172248]
[1728082130628,0.4185,2418.6,2418.5,2.15517248]
[1728082131234,0.4185,2418.6,2418.5,1.60345]
[1728082131533,0.4185,2418.6,2418.5,3.0384408]
[1728082132031,0.4185,2418.6,2418.5,2.15536954]
[1728082132327,0.4185,2418.6,2418.5,3.03867519]
[1728082138931,0.4185,2418.6,2418.5,3.0394737]
[1728082140132,0.4185,2418.6,2418.5,3.03942269]
[1728082141824,0.4185,2418.6,2418.5,1.60345]
[1728082142030,0.4185,2418.6,2418.5,3.03933108]
[1728082142734,0.4185,2418.6,2418.5,1.43588108]
[1728082143245,0.4185,2418.6,2418.5,1.84933108]
[1728082148936,0.4185,2418.6,2418.5,1.84907778]
[1728082151533,0.4185,2418.6,2418.5,3.03907778]
[1728082151844,0.4185,2418.6,2418.5,1.60345]
[1728082152034,0.4175,2418.7,2418.6,0.41344]
[1728082152337,3.5955,2418.8,2418.7,0.41342]
[1728082152538,3.2078,2418.8,2418.6,0.81002]
[1728082152733,3.2078,2418.8,2418.7,1.38475055]
[1728082152928,3.2078,2418.8,2418.7,0.83262]
[1728082153634,0.3914,2418.9,2418.7,1.38475666]
[1728082153841,0.3914,2418.9,2418.8,0.96553666]
[1728082154138,0.3914,2418.9,2418.8,0.55213666]
[1728082158545,0.3914,2418.9,2418.8,0.96553666]
[1728082158848,0.3914,2418.9,2418.8,0.55213666]
[1728082160048,0.3914,2418.9,2418.8,0.96553666]
[1728082160437,0.3914,2418.9,2418.8,0.55213666]
[1728082161845,3.5992,2418.9,2418.8,0.55213666]
[1728082163247,3.5992,2418.9,2418.8,0.55264422]
[1728082163653,3.5992,2418.9,2418.8,0.55267474]
[1728082163852,3.5992,2418.9,2418.8,1.10534948]
[1728082164550,0.3914,2418.9,2418.8,1.10534948]
[1728082164853,3.5992,2418.9,2418.8,1.10534948]
[1728082166449,0.3914,2418.9,2418.8,1.10534948]
[1728082166648,3.5992,2418.9,2418.8,1.10534948]
[1728082168253,3.5992,2418.9,2418.8,1.51874948]
[1728082168454,3.5992,2418.9,2418.8,2.40328642]
[1728082168645,3.5992,2418.9,2418.8,1.98988642]
[1728082169055,3.5992,2418.9,2418.8,1.10534948]
[1728082169252,3.5992,2418.9,2418.8,1.98989595]
[1728082170059,3.5992,2418.9,2418.8,0.55267474]
[1728082170248,3.5992,2418.9,2418.8,1.99016553]
[1728082170754,3.5992,2418.9,2418.8,2.40356553]
[1728082171645,3.2078,2418.9,2418.8,2.40356553]
[1728082171852,3.6878,2419.3,2419.1,0.41334]
[1728082172047,3.6059,2419.3,2419.2,0.95058107]
[1728082173060,4.01922,2419.3,2419.2,0.95058107]
[1728082176855,4.01922,2419.3,2419.2,0.9503993]
[1728082177857,4.01922,2419.3,2419.2,0.3977]
[1728082180552,0.81142,2419.3,2419.2,0.3977]
[1728082180864,4.01922,2419.3,2419.2,0.3977]
[1728082182456,3.2078,2419.3,2419.2,0.3977]
[1728082182659,3.2078,2419.3,2419.2,6.68712509]
[1728082182961,3.2078,2419.3,2419.2,7.57105791]
[1728082183153,0.4133,2419.5,2419.2,7.57105791]
[1728082183360,1.5986,2419.7,2419.3,0.94209509]
[1728082183553,0.4133,2419.5,2419.3,0.3896]
[1728082183751,0.4133,2419.5,2419.3,0.80292]
[1728082183963,0.4133,2419.5,2419.4,0.55229368]
[1728082184362,0.4133,2419.5,2419.3,0.80292]
[1728082196469,0.41328,2419.6,2419.3,0.80292]
[1728082196670,0.82185,2419.7,2419.5,0.41328]
[1728082196871,0.82185,2419.7,2419.6,0.3997]
[1728082200766,0.4133,2419.5,2419.3,1.9929]
[1728082200967,0.4133,2419.5,2419.4,0.3887]
[1728082201766,0.4133,2419.5,2419.4,0.802]
[1728082204676,0.41328,2419.6,2419.4,0.802]
[1728082204862,0.389,2419.5,2419.4,0.802]
[1728082214175,0.389,2419.5,2419.4,0.3887]
[1728082215880,0.41332,2419.3,2419.1,0.41335]
[1728082216075,0.388,2419.2,2419.1,0.41335]
[1728082218579,0.388,2419.2,2419.1,1.60335]
[1728082222188,0.41335,2419.1,2419.0,1.08436946]
[1728082222377,1.23395,2419.1,2418.9,0.41338]
[1728082222578,0.8206,2419.1,2418.9,0.41338]
[1728082222879,1.23395,2419.1,2418.8,0.80289]
[1728082223484,1.23395,2419.1,2418.9,1.84986644]
[1728082223684,1.23395,2419.1,2418.9,0.41339]
[1728082223881,1.23395,2419.1,2419.0,0.55248739]
[1728082224084,5.36755,2419.1,2419.0,0.55248739]
[1728082225482,1.23395,2419.1,2419.0,0.55248739]
[1728082225684,5.36755,2419.1,2419.0,0.55248739]
[1728082225986,1.23395,2419.1,2419.0,0.55248739]
[1728082226186,5.36755,2419.1,2419.0,0.55248739]
[1728082226385,1.23395,2419.1,2419.0,0.55248739]
[1728082226578,5.36755,2419.1,2419.0,0.55248739]
[1728082226784,1.23395,2419.1,2419.0,0.55248739]
[1728082228095,0.388,2419.2,2419.1,0.41335]
[1728082228393,0.388,2419.2,2419.1,0.96583739]
[1728082228591,0.388,2419.2,2419.1,1.36463739]
[1728082229086,0.8064,2419.2,2419.1,1.36463739]
[1728082231893,1.2024,2419.2,2419.1,1.36463739]
[1728082232491,1.2024,2419.2,2419.1,0.81215]
[1728082233092,1.2024,2419.2,2419.1,1.36435444]
[1728082233296,1.2024,2419.2,2419.1,0.81215]
[1728082236305,1.2024,2419.2,2419.1,0.3988]
[1728082236801,1.2024,2419.2,2419.1,0.95093626]
[1728082237103,1.2024,2419.2,2419.1,0.3988]
[1728082238102,1.2024,2419.2,2419.1,0.95092669]
[1728082238299,1.2024,2419.2,2419.1,0.3988]
[1728082239008,1.2024,2419.2,2419.1,0.95092881]
[1728082240010,0.8064,2419.2,2419.1,1.36427881]
[1728082240507,0.8064,2419.2,2419.1,0.95092881]
[1728082240805,1.21973,2419.2,2419.1,0.95092043]
[1728082241299,1.21973,2419.2,2419.1,0.3988]
[1728082241500,1.21973,2419.2,2419.1,0.95092408]
[1728082243010,0.8064,2419.2,2419.1,0.95092408]
[1728082244511,1.21973,2419.2,2419.1,0.95092408]
[1728082248208,0.8064,2419.2,2419.1,0.95092408]
[1728082249306,0.8064,2419.2,2419.1,1.36427408]
[1728082251407,0.4184,2419.2,2419.1,1.36427408]
[1728082251714,3.62113,2419.3,2419.1,1.36427408]
[1728082251907,3.62113,2419.3,2419.2,0.55212408]
[1728082254812,3.2078,2419.3,2419.1,0.3988]
[1728082255017,3.2078,2419.3,2419.2,2.15579812]
[1728082255213,3.2078,2419.3,2419.2,3.87278406]
[1728082255915,3.2078,2419.3,2419.2,8.00638406]
[1728082256315,1.70178,2419.6,2419.3,0.4133]
[1728082256519,1.22178,2419.6,2419.4,0.55246812]
[1728082256819,1.22178,2419.6,2419.5,0.55250781]
[1728082259136,0.41328,2419.5,2419.4,0.4092]
[1728082259418,0.41328,2419.5,2419.4,0.96163581]
[1728082261021,0.41328,2419.5,2419.4,0.96163187]
[1728082261527,0.41328,2419.5,2419.4,0.96163189]
[1728082262923,1.22177,2419.6,2419.4,1.37493189]
[1728082263122,1.22177,2419.6,2419.5,0.55243189]
[1728082264013,1.22177,2419.6,2419.5,0.5523319]
[1728082264212,1.22177,2419.6,2419.5,0.5523354]
[1728082264620,1.22177,2419.6,2419.4,0.4092]
[1728082264621,0.41328,2419.5,2419.4,0.4092]
[1728082264929,0.41328,2419.5,2419.4,0.96150013]
[1728082266923,3.6033,2419.7,2419.4,5.09430013]
[1728082267116,3.2078,2419.7,2419.6,1.60327]
[1728082267520,3.2078,2419.7,2419.6,2.1554773]
[1728082267819,3.2078,2419.7,2419.6,3.03900898]
[1728082269117,1.2593,2419.9,2419.6,2.62573898]
[1728082269325,1.2593,2419.9,2419.8,1.19]
[1728082269524,1.2593,2419.9,2419.8,1.7422073]
[1728082269723,1.2593,2419.9,2419.8,2.1615073]
[1728082269925,1.2593,2419.9,2419.8,2.5747373]
[1728082270634,1.2593,2419.9,2419.8,1.6093]
[1728082272525,1.2593,2419.9,2419.8,2.02253]
[1728082276231,1.2593,2419.9,2419.8,1.6093]
[1728082277331,1.67251,2419.9,2419.8,1.6093]
[1728082277534,1.67251,2419.9,2419.8,0.4193]
[1728082277832,1.67251,2419.9,2419.7,1.60324]
[1728082279825,1.2593,2419.9,2419.7,1.19]
[1728082280033,1.2593,2419.9,2419.8,0.41323]
[1728082280629,1.2593,2419.9,2419.8,1.60323]
[1728082281341,1.2593,2419.9,2419.8,1.19]
[1728082281638,1.67251,2419.9,2419.8,1.19]
[1728082284839,1.67251,2419.9,2419.7,0.41324]
[1728082285033,1.67251,2419.9,2419.7,1.60324]
[1728082286238,1.67251,2419.9,2419.7,1.19]
[1728082286535,1.67251,2419.9,2419.8,0.41323]
[1728082292036,1.2593,2419.9,2419.8,0.41323]
[1728082292239,1.2593,2419.9,2419.8,1.60323]
[1728082296641,1.67251,2419.9,2419.8,1.60323]
[1728082297747,1.2593,2419.9,2419.8,1.60323]
[1728082298339,1.2593,2419.9,2419.8,2.15453064]
[1728082299742,1.2593,2419.9,2419.8,1.60323]
[1728082299948,1.2593,2419.9,2419.8,2.15468775]
[1728082303246,1.2593,2419.9,2419.8,1.60323]
[1728082303449,1.2593,2419.9,2419.8,2.15499842]
[1728082304152,1.2593,2419.9,2419.8,3.03793795]
[1728082304344,1.2593,2419.9,2419.8,2.15499842]
[1728082305253,1.2593,2419.9,2419.8,3.03808864]
[1728082306747,1.2593,2419.9,2419.8,1.60323]
[1728082306947,1.2593,2419.9,2419.8,2.15516744]
[1728082307141,1.2593,2419.9,2419.8,3.03826735]
[1728082313348,1.2593,2419.9,2419.8,2.68607648]
[1728082313554,1.2593,2419.9,2419.8,4.12360093]
[1728082314055,1.2593,2419.9,2419.8,4.12363331]
[1728082316747,1.2593,2419.9,2419.8,2.68607648]
[1728082317252,1.2593,2419.9,2419.8,4.12364521]
[1728082318654,3.2078,2420.1,2420.0,0.4132]
[1728082318853,3.2078,2420.1,2420.0,3.04076873]
[1728082319156,1.2224,2420.2,2420.1,0.41318]
[1728082319455,1.2224,2420.2,2420.1,1.85074873]
[1728082320357,1.2224,2420.2,2420.1,0.41318]
[1728082320557,1.63556,2420.2,2420.1,1.4372864]
[1728082322263,1.2224,2420.2,2420.1,1.4372864]
[1728082322560,1.2224,2420.2,2420.0,1.60319]
[1728082322959,1.2224,2420.2,2420.1,1.43704717]
[1728082323155,1.2224,2420.2,2420.0,1.60319]
[1728082323368,1.2224,2420.2,2420.1,0.5527125]
[1728082323555,1.2224,2420.2,2420.1,1.4370525]
[1728082328267,1.2224,2420.2,2420.1,1.8502325]
[1728082328660,1.2224,2420.2,2420.1,1.4370525]
[1728082329267,1.2224,2420.2,2420.1,1.8502325]
[1728082329870,5.76756,2420.2,2420.1,1.4370525]
[1728082330168,5.76756,2420.2,2419.6,1.08460383]
[1728082330169,12.5444,2420.2,2419.6,1.08460383]
[1728082330360,0.41327,2419.6,2419.5,1.49788383]
[1728082330560,0.41327,2419.6,2419.5,1.29080691]
[1728082330863,0.41326,2419.7,2419.5,1.29080691]
[1728082331069,1.19944,2419.8,2419.6,2.48078691]
[1728082331375,1.19944,2419.8,2419.6,1.60326]
[1728082333470,0.41325,2419.7,2419.6,1.60326]
[1728082333765,0.41325,2419.7,2419.6,2.48070909]
[1728082334070,0.41325,2419.7,2419.6,2.06744909]
[1728082334582,0.81345,2419.7,2419.6,2.06744909]
[1728082337567,0.81345,2419.7,2419.6,1.19]
[1728082338867,4.02125,2419.7,2419.6,1.19]
[1728082341067,0.81345,2419.7,2419.6,1.19]
[1728082341472,4.02125,2419.7,2419.6,1.19]
[1728082342079,4.02125,2419.7,2419.6,1.73803001]
[1728082343376,4.02125,2419.7,2419.6,1.19]
[1728082343677,4.02125,2419.7,2419.6,1.73793696]
[1728082343880,3.608,2419.7,2419.6,1.60327]
[1728082344064,3.608,2419.7,2419.6,2.15120496]
[1728082344468,4.02125,2419.7,2419.6,2.15120496]
[1728082345165,0.81345,2419.7,2419.6,2.15120496]
[1728082345575,0.81345,2419.7,2419.6,2.15113465]
[1728082346276,0.81345,2419.7,2419.6,1.19]
[1728082346978,0.81345,2419.7,2419.6,1.5855]
[1728082347173,0.81345,2419.7,2419.6,2.0126]
[1728082348078,0.81345,2419.7,2419.6,2.42587]
[1728082348981,0.41325,2419.7,2419.6,2.0126]
[1728082351386,0.41325,2419.7,2419.6,2.42587]
[1728082351880,0.41325,2419.7,2419.6,2.0126]
[1728082352880,0.41322,2419.9,2419.7,0.41323]
[1728082353086,0.41322,2419.9,2419.7,2.00753]
[1728082353274,0.41322,2419.9,2419.8,0.41323]
[1728082353477,0.4212,2420.0,2419.9,0.41321]
[1728082353675,0.4212,2420.0,2419.9,1.60321]
[1728082353874,0.8344,2420.0,2419.9,1.60321]
[1728082354081,0.8344,2420.0,2419.9,1.19]
[1728082354595,0.4132,2420.0,2419.9,2.41051]
[1728082354778,0.4132,2420.0,2419.9,1.9973]
[1728082359380,0.4132,2420.0,2419.9,0.8073]
[1728082361491,3.6052,2420.1,2419.9,0.8073]
[1728082361492,4.01839,2420.1,2419.9,1.22051]
[1728082363983,0.81059,2420.1,2419.9,1.22051]
[1728082364881,0.81059,2420.1,2420.0,1.19]
[1728082365191,0.3974,2420.1,2420.0,1.19]
[1728082365491,0.3974,2420.1,2420.0,1.6032]
[1728082365694,4.01097,2420.2,2420.0,1.6032]
[1728082365881,4.01097,2420.2,2420.0,2.0192]
[1728082366185,4.01097,2420.2,2420.1,1.19]
[1728082368492,0.41318,2420.1,2420.0,0.416]
[1728082368695,0.41318,2420.1,2420.0,0.96381253]
[1728082368895,0.41318,2420.1,2420.0,0.416]
[1728082369593,3.5978,2420.2,2420.0,0.416]
[1728082369782,4.01098,2420.2,2420.0,0.82919]
[1728082370186,0.41318,2420.1,2420.0,0.416]
[1728082370391,0.41318,2420.1,2420.0,0.96385734]
[1728082372298,3.5978,2420.2,2420.0,0.96385734]
[1728082372499,4.01098,2420.2,2420.0,0.416]
[1728082372696,0.41318,2420.1,2420.0,0.416]
[1728082372897,0.41318,2420.1,2420.0,0.9639004]
[1728082373599,4.01097,2420.2,2420.0,0.9639004]
[1728082373788,0.80317,2420.2,2420.0,0.416]
[1728082374603,0.41318,2420.1,2420.0,0.416]
[1728082374795,0.41318,2420.1,2420.0,0.96394108]
[1728082376507,0.80317,2420.2,2420.0,0.96394108]
[1728082376800,0.80317,2420.2,2420.0,0.416]
[1728082377003,0.41318,2420.1,2420.0,0.416]
[1728082377402,0.41318,2420.1,2420.0,0.96392184]
[1728082380500,4.01098,2420.2,2420.0,0.416]
[1728082380697,3.5978,2420.2,2420.0,0.547864]
[1728082380900,0.4132,2420.0,2419.9,1.9973]
[1728082381097,0.4132,2420.0,2419.9,2.54517508]
[1728082381602,0.8312,2420.0,2419.9,1.35517508]
[1728082382998,0.8312,2420.0,2419.9,0.8073]
[1728082383205,0.8312,2420.0,2419.9,1.35516501]
[1728082383508,0.418,2420.0,2419.9,1.35516501]
[1728082383704,0.418,2420.0,2419.9,2.54516501]
[1728082383905,0.8312,2420.0,2419.9,2.54516501]
[1728082384613,0.418,2420.0,2419.9,2.54516501]
[1728082386404,0.418,2420.0,2419.9,1.9973]
[1728082386600,0.418,2420.0,2419.9,2.54520984]
[1728082388502,0.418,2420.0,2419.9,2.95841984]
[1728082390117,0.418,2420.0,2419.9,2.95851328]
[1728082390609,0.418,2420.0,2419.9,3.83537702]
[1728082394110,0.418,2420.0,2419.9,3.83574465]
[1728082396810,3.2078,2420.3,2419.9,7.55453465]
[1728082397116,0.096,2420.6,2420.4,0.41313]
[1728082397117,0.5226,2420.6,2420.4,0.41313]
[1728082397321,0.3871,2420.6,2420.5,0.41311]
[1728082397521,0.3871,2420.6,2420.5,1.83860701]
[1728082400115,0.3871,2420.6,2420.5,1.83757158]
[1728082400418,3.6204,2420.7,2420.6,0.4131]
[1728082400619,3.6204,2420.7,2420.6,2.15096984]
[1728082401419,3.6204,2420.7,2420.6,1.6031]
[1728082401621,3.6204,2420.7,2420.6,2.15081909]
[1728082402217,3.6204,2420.7,2420.6,1.6031]
[1728082403822,3.6204,2420.7,2420.6,1.19]
[1728082404118,3.6204,2420.7,2420.6,1.6031]
[1728082404530,0.4126,2420.7,2420.6,1.6031]
[1728082409224,0.4126,2420.7,2420.6,1.19]
[1728082409631,0.4126,2420.7,2420.6,1.6031]
[1728082411432,0.4126,2420.7,2420.6,1.19]
[1728082411932,0.4126,2420.7,2420.6,2.0032]
[1728082415029,0.384,2420.9,2420.6,2.55006671]
[1728082415232,0.4225,2421.0,2420.8,1.19]
[1728082416632,0.83553,2421.0,2420.8,1.19]
[1728082417041,0.83553,2421.0,2420.8,1.60305]
[1728082417042,0.4225,2421.0,2420.8,1.60305]
[1728082417249,0.83553,2421.0,2420.8,1.19]
[1728082417450,0.83553,2421.0,2420.8,1.60306]
[1728082417850,0.4225,2421.0,2420.8,1.60306]
[1728082420551,0.4225,2421.0,2420.8,1.19]
[1728082420851,0.4225,2421.0,2420.9,0.41304]
[1728082423041,0.4225,2421.0,2420.8,1.19]
[1728082423042,0.3942,2421.1,2421.0,0.41303]
[1728082423240,0.7942,2421.3,2421.2,0.41299]
[1728082423446,0.7975,2421.3,2421.2,1.60299]
[1728082424246,1.21048,2421.3,2421.2,1.60299]
[1728082425345,1.21048,2421.3,2421.2,1.19]
[1728082425547,0.4119,2421.5,2421.4,0.41296]
[1728082425746,1.21154,2421.5,2421.4,1.19]
[1728082426947,0.7986,2421.5,2421.3,1.19]
[1728082427148,0.413,2421.2,2421.1,1.19]
[1728082427949,0.8075,2421.2,2421.1,1.19]
[1728082428751,0.3945,2421.2,2421.1,1.19]
[1728082434059,0.3945,2421.2,2421.1,1.60301]
[1728082442557,0.3945,2421.2,2421.1,2.14993193]
[1728082442759,0.3945,2421.2,2421.1,1.60301]
[1728082443162,0.3945,2421.2,2421.1,2.14992059]
[1728082443657,0.3945,2421.2,2421.1,2.56792059]
[1728082446161,0.3945,2421.2,2421.1,2.02101]
[1728082446368,0.3945,2421.2,2421.1,2.5679416]
[1728082446757,0.3945,2421.2,2421.1,2.02101]
[1728082446958,0.3945,2421.2,2421.1,2.56792841]
[1728082448268,0.4021,2421.3,2421.1,2.15491841]
[1728082448475,0.4021,2421.3,2421.2,2.02059]
[1728082450059,3.2078,2421.5,2421.2,1.6076]
[1728082450260,0.84004,2421.6,2421.4,1.19]
[1728082450462,0.396,2421.5,2421.4,1.19]
[1728082450961,4.5256,2421.5,2421.4,1.19]
[1728082451264,4.5256,2421.5,2421.4,1.60296]
[1728082451866,4.9453,2421.5,2421.4,1.60296]
[1728082455769,0.41299,2421.3,2421.2,1.19]
[1728082456960,0.41301,2421.1,2421.0,1.60302]
[1728082457161,0.41301,2421.1,2421.0,2.15026901]
[1728082457666,1.24771,2421.1,2421.0,2.15026901]
[1728082459166,0.8347,2421.1,2421.0,2.15026901]
[1728082460470,0.8347,2421.1,2421.0,2.15062175]
[1728082460867,0.8347,2421.1,2421.0,3.026803]
[1728082461070,0.8347,2421.1,2421.0,3.02680045]
[1728082461470,5.37811,2421.1,2421.0,1.42378045]
[1728082463675,4.9651,2421.1,2420.9,0.41304]
[1728082463871,0.41303,2421.0,2420.9,0.41304]
[1728082464368,0.41303,2421.0,2420.9,0.96093056]
[1728082464972,0.41303,2421.0,2420.9,0.54789056]
[1728082469872,0.41303,2421.0,2420.8,1.99845]
[1728082470072,0.4249,2420.9,2420.8,1.99845]
[1728082470579,0.4249,2420.9,2420.8,2.54632151]
[1728082474368,0.83794,2420.9,2420.8,0.54787151]
[1728082474565,4.04574,2420.9,2420.8,1.73761458]
[1728082474969,3.6327,2420.9,2420.8,1.73761458]
[1728082475169,3.6327,2420.9,2420.8,2.15067458]
[1728082475380,3.6327,2420.9,2420.8,2.15062429]
[1728082476483,3.6327,2420.9,2420.8,1.60306]
[1728082476977,3.6327,2420.9,2420.8,2.15057386]
[1728082477378,3.6327,2420.9,2420.8,1.60306]
[1728082477869,3.6327,2420.9,2420.8,2.15054053]
[1728082478272,3.6327,2420.9,2420.8,1.60306]
[1728082478478,4.04574,2420.9,2420.8,1.19]
[1728082478677,3.6327,2420.9,2420.8,1.60306]
[1728082481479,3.6327,2420.9,2420.8,1.19]
[1728082481679,4.04574,2420.9,2420.8,1.19]
[1728082482082,4.04574,2420.9,2420.8,1.6126]
[1728082482682,3.6327,2420.9,2420.8,1.6126]
[1728082483780,3.6327,2420.9,2420.8,2.02566]
[1728082484376,3.6327,2420.9,2420.8,1.6126]
[1728082484685,4.04574,2420.9,2420.8,1.6126]
[1728082485180,0.83794,2420.9,2420.8,0.4226]
[1728082485380,0.83794,2420.9,2420.5,0.4195]
[1728082485381,0.4131,2420.6,2420.5,0.4195]
[1728082485581,10.5553,2420.9,2420.5,0.4195]
[1728082485582,0.41308,2420.7,2420.5,2.56997508]
[1728082485787,0.41308,2420.7,2420.5,1.60311]
[1728082485978,0.41308,2420.7,2420.5,2.02681]
[1728082486276,0.4131,2420.6,2420.5,1.6137]
[1728082486482,0.83,2420.6,2420.5,0.4237]
[1728082486672,0.83,2420.6,2420.4,0.3867]
[1728082488183,0.83,2420.6,2420.4,0.79983]
[1728082491583,0.83,2420.6,2420.4,0.3867]
[1728082494383,0.3954,2420.5,2420.4,0.3867]
[1728082495289,0.80852,2420.5,2420.3,0.4237]
[1728082495589,1.20092,2420.5,2420.3,0.4237]
[1728082496274,1.20092,2420.5,2420.3,0.83684]
[1728082498181,0.7878,2420.5,2420.3,0.83684]
[1728082500690,1.20091,2420.5,2420.3,0.83684]
[1728082503079,1.20091,2420.5,2420.4,0.4106]
[1728082505285,0.7878,2420.5,2420.4,0.4106]
[1728082505481,3.2078,2420.6,2420.5,0.41311]
[1728082505680,0.41307,2420.8,2420.7,0.41308]
[1728082505890,0.81856,2420.9,2420.7,0.41308]
[1728082506196,0.81856,2420.9,2420.8,0.3947]
[1728082515995,0.41306,2420.9,2420.8,0.3947]
[1728082517100,3.2078,2421.0,2420.9,0.41304]
[1728082517304,3.2078,2421.0,2420.9,0.54768608]
[1728082517600,3.62084,2421.0,2420.9,0.54766888]